fUSD/lending_fUSD_20260518
["ID","MTS","AMOUNT","RATE_DAILY","PERIOD"]
[422534797,1779041439000,-500.0,0.00013698,2]
[422534876,1779041440000,-154.55661821,0.00013851,2]
[422534886,1779041440000,-154.55661821,0.00013912,2]
[422534875,1779041440000,-150.0,0.00013851,2]
[422534881,1779041440000,-150.0,0.00013887,2]
[422534884,1779041440000,-150.0,0.00013896,2]
[422534887,1779041440000,-150.0,0.00013916,2]
[422534873,1779041440000,-150.0,0.00013837,2]
[422534874,1779041440000,-150.0,0.00013837,2]
[422534870,1779041440000,-154.55661821,0.00013821,2]
[422534872,1779041440000,-154.55661821,0.00013836,2]
[422534871,1779041440000,-150.0,0.00013828,2]
[422534879,1779041440000,-150.0,0.00013876,2]
[422534877,1779041440000,-39519.82549059,0.00013853,2]
[422534878,1779041440000,-154.55661821,0.00013866,2]
[422534890,1779041440000,-150.0,0.00013932,2]
[422534882,1779041440000,-150.0,0.00013887,2]
[422534885,1779041440000,-154.55661821,0.00013896,2]
[422534883,1779041440000,-150.0,0.00013896,2]
[422534888,1779041440000,-63041.26698456,0.00013921,2]
[422534891,1779041440000,-150.0,0.00013937,2]
[422534892,1779041440000,-150.0,0.00013937,2]
[422534897,1779041440000,-150.0,0.00013965,2]
[422534895,1779041440000,-154.55661821,0.00013942,2]
[422534894,1779041440000,-150.0,0.00013942,2]
[422534899,1779041440000,-176.36230035,0.00013978,2]
[422534889,1779041440000,-154.55661821,0.00013927,2]
[422534896,1779041440000,-154.55661821,0.00013957,2]
[422534880,1779041440000,-154.55661821,0.00013881,2]
[422534865,1779041440000,-1667.97937432,0.000138,2]
[422534849,1779041440000,-154.55661821,0.00013715,2]
[422534868,1779041440000,-154.55661821,0.00013806,2]
[422534838,1779041440000,-348.0,0.00013699,2]
[422534848,1779041440000,-150.0,0.00013715,2]
[422534898,1779041440000,-154.55661821,0.00013972,2]
[422534839,1779041440000,-348.0,0.00013699,2]
[422534842,1779041440000,-154.55661821,0.000137,2]
[422534840,1779041440000,-257.54382716,0.00013699,2]
[422534837,1779041440000,-348.0,0.00013699,2]
[422534844,1779041440000,-153.32,0.000137,2]
[422534843,1779041440000,-914.21,0.000137,2]
[422534841,1779041440000,-1000.0,0.00013699,2]
[422534845,1779041440000,-153.32,0.000137,2]
[422534847,1779041440000,-150.0,0.0001371,2]
[422534846,1779041440000,-150.0,0.00013702,2]
[422534851,1779041440000,-150.0,0.00013737,2]
[422534861,1779041440000,-150.0,0.00013787,2]
[422534863,1779041440000,-150.0,0.00013787,2]
[422534854,1779041440000,-154.55661821,0.00013745,2]
[422534850,1779041440000,-154.55661821,0.0001373,2]
[422534855,1779041440000,-150.0,0.0001376,2]
[422534852,1779041440000,-150.0,0.00013737,2]
[422534856,1779041440000,-150.0,0.0001376,2]
[422534853,1779041440000,-348.0,0.00013739,2]
[422534857,1779041440000,-154.55661821,0.0001376,2]
[422534858,1779041440000,-150.0,0.00013765,2]
[422534860,1779041440000,-150.0,0.00013787,2]
[422534859,1779041440000,-154.55661821,0.00013775,2]
[422534864,1779041440000,-154.55661821,0.0001379,2]
[422534869,1779041440000,-150.0,0.00013821,2]
[422534867,1779041440000,-150.0,0.00013806,2]
[422534866,1779041440000,-350.89620677,0.000138,2]
[422534900,1779041440000,-150.0,0.00013987,2]
[422534893,1779041440000,-150.0,0.00013937,2]
[422534901,1779041440000,-150.0,0.00013987,2]
[422534934,1779041440000,-150.0,0.00014137,2]
[422534933,1779041440000,-150.0,0.00014137,2]
[422534932,1779041440000,-150.0,0.0001413,2]
[422534935,1779041440000,-154.55661821,0.00014139,2]
[422534943,1779041440000,-154.55661821,0.00014184,2]
[422534950,1779041440000,-150.0,0.00014214,2]
[422534952,1779041440000,-154.55661821,0.00014214,2]
[422534954,1779041440000,-150.0,0.00014237,2]
[422534940,1779041440000,-150.0,0.00014169,2]
[422534946,1779041440000,-154.55661821,0.00014199,2]
[422534955,1779041440000,-150.0,0.00014237,2]
[422534942,1779041440000,-333.04,0.00014184,2]
[422534944,1779041440000,-150.0,0.00014187,2]
[422534948,1779041440000,-150.0,0.00014209,2]
[422534945,1779041440000,-150.0,0.00014187,2]
[422534953,1779041440000,-154.55661821,0.00014229,2]
[422534967,1779041440000,-150.0,0.00014265,2]
[422534968,1779041440000,-154.55661821,0.00014275,2]
[422534956,1779041440000,-150.0,0.00014237,2]
[422534969,1779041440000,-166.72,0.0001428,2]
[422534958,1779041440000,-150.0,0.00014237,2]
[422534970,1779041440000,-150.0,0.00014287,2]
[422534972,1779041440000,-154.55661821,0.0001429,2]
[422534971,1779041440000,-150.0,0.00014287,2]
[422534963,1779041440000,-150.0,0.0001426,2]
[422534959,1779041440000,-154.55661821,0.00014245,2]
[422534965,1779041440000,-154.55661821,0.0001426,2]
[422534961,1779041440000,-151.51558632,0.00014247,21]
[422534902,1779041440000,-150.0,0.00013987,2]
[422534939,1779041440000,-150.0,0.00014169,2]
[422534928,1779041440000,-150.0,0.00014101,2]
[422534941,1779041440000,-154.55661821,0.00014169,2]
[422534930,1779041440000,-150.0,0.00014123,2]
[422534931,1779041440000,-154.55661821,0.00014123,2]
[422534908,1779041440000,-1500.0,0.00014,2]
[422534911,1779041440000,-154.55661821,0.00014017,2]
[422534912,1779041440000,-500.0,0.0001403,2]
[422534910,1779041440000,-154.55661821,0.00014002,2]
[422534905,1779041440000,-150.0,0.00013987,2]
[422534906,1779041440000,-154.55661821,0.00013987,2]
[422534909,1779041440000,-250.0,0.00014,2]
[422534907,1779041440000,-60000.0,0.0001399,2]
[422534903,1779041440000,-150.0,0.00013987,2]
[422534917,1779041440000,-150.0,0.00014037,2]
[422534914,1779041440000,-150.0,0.00014033,2]
[422534916,1779041440000,-150.0,0.00014037,2]
[422534913,1779041440000,-150.0,0.00014033,2]
[422534915,1779041440000,-154.55661821,0.00014033,2]
[422534904,1779041440000,-150.0,0.00013987,2]
[422534919,1779041440000,-154.55661821,0.00014048,2]
[422534922,1779041440000,-154.55661821,0.00014078,2]
[422534938,1779041440000,-63041.26698456,0.00014166,2]
[422534936,1779041440000,-154.55661821,0.00014154,2]
[422534929,1779041440000,-154.55661821,0.00014108,2]
[422534937,1779041440000,-150.0,0.00014154,2]
[422534927,1779041440000,-150.0,0.00014098,2]
[422534926,1779041440000,-154.55661821,0.00014093,2]
[422534921,1779041440000,-150.0,0.00014078,2]
[422534925,1779041440000,-150.0,0.00014087,2]
[422534924,1779041440000,-150.0,0.00014087,2]
[422534918,1779041440000,-150.0,0.00014043,2]
[422534923,1779041440000,-150.0,0.00014087,2]
[422534920,1779041440000,-154.55661821,0.00014063,2]
[422535027,1779041441000,-154.55661821,0.00014562,2]
[422535016,1779041441000,-154.55661821,0.00014502,2]
[422535026,1779041441000,-150.0,0.00014558,2]
[422535014,1779041441000,-150.0,0.00014487,2]
[422535006,1779041441000,-154.55661821,0.00014456,2]
[422535005,1779041441000,-154.55661821,0.00014441,2]
[422535002,1779041441000,-150.0,0.00014437,2]
[422535013,1779041441000,-150.0,0.00014487,2]
[422535008,1779041441000,-2351.0,0.00014476,2]
[422535011,1779041441000,-150.0,0.00014487,2]
[422535010,1779041441000,-150.0,0.00014487,2]
[422535015,1779041441000,-154.55661821,0.00014487,2]
[422535012,1779041441000,-150.0,0.00014487,2]
[422535017,1779041441000,-150.0,0.00014509,2]
[422535024,1779041441000,-150.0,0.00014542,2]
[422535019,1779041441000,-150.0,0.00014532,2]
[422535020,1779041441000,-154.55661821,0.00014532,2]
[422535023,1779041441000,-150.0,0.00014537,2]
[422535022,1779041441000,-150.0,0.00014537,2]
[422535021,1779041441000,-150.0,0.00014537,2]
[422535025,1779041441000,-154.55661821,0.00014547,2]
[422535031,1779041441000,-500.0,0.00014578,2]
[422535032,1779041441000,-150.0,0.00014587,2]
[422535030,1779041441000,-154.55661821,0.00014578,2]
[422535028,1779041441000,-150.0,0.00014578,2]
[422535029,1779041441000,-150.0,0.00014578,2]
[422535033,1779041441000,-150.0,0.00014587,2]
[422535007,1779041441000,-154.55661821,0.00014472,2]
[422535018,1779041441000,-154.55661821,0.00014517,2]
[422535009,1779041441000,-150.0,0.00014487,2]
[422535035,1779041441000,-150.0,0.00014598,2]
[422535004,1779041441000,-150.0,0.00014441,2]
[422534973,1779041441000,-200.0,0.00014294,2]
[422534974,1779041441000,-500.0,0.00014304,2]
[422534975,1779041441000,-150.0,0.00014305,2]
[422534978,1779041441000,-150.0,0.0001432,2]
[422534977,1779041441000,-154.55661821,0.00014305,2]
[422534979,1779041441000,-154.55661821,0.0001432,2]
[422534976,1779041441000,-150.0,0.00014305,2]
[422534982,1779041441000,-150.0,0.00014337,2]
[422534980,1779041441000,-433.0,0.00014332,2]
[422534981,1779041441000,-154.55661821,0.00014335,2]
[422534983,1779041441000,-150.0,0.00014337,2]
[422534987,1779041441000,-154.55661821,0.00014366,2]
[422534984,1779041441000,-150.0,0.00014344,2]
[422534986,1779041441000,-154.55661821,0.00014351,2]
[422534985,1779041441000,-150.0,0.00014351,2]
[422535000,1779041441000,-150.0,0.00014431,2]
[422534989,1779041441000,-150.0,0.00014376,2]
[422534995,1779041441000,-154.55661821,0.00014396,2]
[422534996,1779041441000,-63041.26698456,0.00014411,2]
[422534988,1779041441000,-150.0,0.00014373,2]
[422534991,1779041441000,-150.0,0.00014387,2]
[422534993,1779041441000,-150.0,0.00014387,2]
[422534990,1779041441000,-154.55661821,0.00014381,2]
[422534999,1779041441000,-154.55661821,0.00014426,2]
[422534994,1779041441000,-150.0,0.00014396,2]
[422534992,1779041441000,-150.0,0.00014387,2]
[422534997,1779041441000,-154.55661821,0.00014411,2]
[422534998,1779041441000,-452.0,0.00014419,2]
[422535001,1779041441000,-150.0,0.00014437,2]
[422535003,1779041441000,-150.0,0.00014441,2]
[422535034,1779041441000,-154.55661821,0.00014593,2]
[422535080,1779041441000,-166.66,0.0001483,2]
[422535040,1779041441000,-150.0,0.00014637,2]
[422535067,1779041441000,-150.0,0.00014764,2]
[422535070,1779041441000,-150.0,0.00014782,2]
[422535073,1779041441000,-154.55661821,0.0001479,2]
[422535069,1779041441000,-154.55661821,0.00014774,2]
[422535068,1779041441000,-150.0,0.00014772,2]
[422535071,1779041441000,-150.0,0.00014786,2]
[422535072,1779041441000,-150.0,0.00014786,2]
[422535079,1779041441000,-154.55661821,0.0001482,2]
[422535090,1779041441000,-150.0,0.00014875,2]
[422535089,1779041441000,-154.55661821,0.00014865,2]
[422535078,1779041441000,-150.0,0.0001482,2]
[422535082,1779041441000,-150.0,0.00014836,2]
[422535084,1779041441000,-150.0,0.00014836,2]
[422535081,1779041441000,-154.55661821,0.00014835,2]
[422535088,1779041441000,-500.0,0.00014852,2]
[422535083,1779041441000,-150.0,0.00014836,2]
[422535100,1779041441000,-350.89620677,0.000149,2]
[422535086,1779041441000,-150.0,0.0001485,2]
[422535087,1779041441000,-154.55661821,0.0001485,2]
[422535085,1779041441000,-150.0,0.0001485,2]
[422535091,1779041441000,-154.55661821,0.0001488,2]
[422535092,1779041441000,-150.0,0.00014886,2]
[422535095,1779041441000,-154.55661821,0.00014895,2]
[422535093,1779041441000,-150.0,0.00014886,2]
[422535094,1779041441000,-150.0,0.00014895,2]
[422535098,1779041441000,-200.0,0.000149,5]
[422535096,1779041441000,-63041.26698456,0.000149,2]
[422535097,1779041441000,-700.0,0.000149,5]
[422535036,1779041441000,-200.0,0.000146,5]
[422535075,1779041441000,-200.0,0.000148,5]
[422535076,1779041441000,-150.0,0.00014805,2]
[422535099,1779041441000,-1667.97937432,0.000149,2]
[422535077,1779041441000,-154.55661821,0.00014805,2]
[422535065,1779041441000,-150.0,0.00014759,2]
[422535041,1779041441000,-150.0,0.00014637,2]
[422535044,1779041441000,-150.0,0.00014653,2]
[422535043,1779041441000,-150.0,0.00014646,2]
[422535042,1779041441000,-154.55661821,0.00014638,2]
[422535038,1779041441000,-150.0,0.00014623,2]
[422535046,1779041441000,-63041.26698456,0.00014655,2]
[422535037,1779041441000,-154.55661821,0.00014608,2]
[422535045,1779041441000,-154.55661821,0.00014653,2]
[422535047,1779041441000,-150.0,0.00014668,2]
[422535049,1779041441000,-154.55661821,0.00014684,2]
[422535048,1779041441000,-154.55661821,0.00014668,2]
[422535051,1779041441000,-150.0,0.00014687,2]
[422535061,1779041441000,-150.0,0.00014737,2]
[422535039,1779041441000,-154.55661821,0.00014623,2]
[422535050,1779041441000,-150.0,0.00014687,2]
[422535062,1779041441000,-150.0,0.00014737,2]
[422535066,1779041441000,-154.55661821,0.00014759,2]
[422535064,1779041441000,-154.55661821,0.00014744,2]
[422535058,1779041441000,-150.0,0.00014714,2]
[422535059,1779041441000,-154.55661821,0.00014714,2]
[422535060,1779041441000,-154.55661821,0.00014729,2]
[422535074,1779041441000,-700.0,0.000148,5]
[422535055,1779041441000,-200.0,0.000147,5]
[422535057,1779041441000,-150.0,0.00014714,2]
[422535054,1779041441000,-700.0,0.000147,5]
[422535053,1779041441000,-154.55661821,0.00014699,2]
[422535063,1779041441000,-1323.53,0.00014742,2]
[422535056,1779041441000,-150.0,0.00014709,2]
[422535052,1779041441000,-150.0,0.00014687,2]
[422535145,1779041442000,-151.0,0.00015,2]
[422535132,1779041442000,-8083.88332088,0.00015,2]
[422535131,1779041442000,-2076.43774024,0.00015,2]
[422535133,1779041442000,-8227976.50112734,0.00015,2]
[422535135,1779041442000,-151.0,0.00015,2]
[422535138,1779041442000,-151.0,0.00015,2]
[422535137,1779041442000,-151.0,0.00015,2]
[422535146,1779041442000,-151.0,0.00015,2]
[422535143,1779041442000,-151.0,0.00015,2]
[422535140,1779041442000,-151.0,0.00015,2]
[422535136,1779041442000,-151.0,0.00015,2]
[422535134,1779041442000,-427.90238331,0.00015,2]
[422535157,1779041442000,-177.320438,0.00015068,2]
[422535141,1779041442000,-151.0,0.00015,2]
[422535139,1779041442000,-151.0,0.00015,2]
[422535144,1779041442000,-151.0,0.00015,2]
[422535156,1779041442000,-177.320438,0.00015068,2]
[422535155,1779041442000,-177.320438,0.00015068,2]
[422535158,1779041442000,-177.320438,0.00015068,2]
[422535147,1779041442000,-250.187728,0.00015,2]
[422535151,1779041442000,-226.4192,0.00015,2]
[422535148,1779041442000,-151.0,0.00015,2]
[422535153,1779041442000,-151.0,0.00015,2]
[422535130,1779041442000,-6124218.23833411,0.00015,2]
[422535149,1779041442000,-151.0,0.00015,2]
[422535142,1779041442000,-151.0,0.00015,2]
[422535129,1779041442000,-300.0,0.00014999,2]
[422535112,1779041442000,-154.55661821,0.00014971,2]
[422535126,1779041442000,-1102.65356766,0.00014999,5]
[422535150,1779041442000,-151.0,0.00015,2]
[422535102,1779041442000,-1657.59094514,0.000149,2]
[422535103,1779041442000,-154.55661821,0.00014911,2]
[422535101,1779041442000,-713.8621957,0.000149,2]
[422535104,1779041442000,-150.0,0.00014918,2]
[422535114,1779041442000,-288.21652124,0.00014986,2]
[422535105,1779041442000,-154.55661821,0.00014926,2]
[422535113,1779041442000,-278.83771142,0.00014986,2]
[422535115,1779041442000,-151.31876581,0.00014986,2]
[422535106,1779041442000,-150.0,0.00014931,2]
[422535111,1779041442000,-154.55661821,0.00014956,2]
[422535109,1779041442000,-150.0,0.00014941,2]
[422535128,1779041442000,-300.0,0.00014999,2]
[422535107,1779041442000,-150.0,0.00014936,2]
[422535110,1779041442000,-154.55661821,0.00014941,2]
[422535117,1779041442000,-202.29802684,0.00014986,2]
[422535118,1779041442000,-164.93102535,0.00014986,2]
[422535119,1779041442000,-298.2801607,0.00014986,2]
[422535116,1779041442000,-183.84406697,0.00014986,2]
[422535121,1779041442000,-299.89040453,0.00014986,2]
[422535125,1779041442000,-151.0,0.00014997,2]
[422535127,1779041442000,-1102.65356766,0.00014999,5]
[422535120,1779041442000,-180.24907309,0.00014986,2]
[422535124,1779041442000,-743.66210776,0.0001499,2]
[422535123,1779041442000,-154.55661821,0.00014986,2]
[422535122,1779041442000,-253.51377421,0.00014986,2]
[422535108,1779041442000,-150.0,0.00014936,2]
[422535152,1779041442000,-151.0,0.00015,2]
[422535162,1779041442000,-151.0,0.00015068,2]
[422535161,1779041442000,-177.320438,0.00015068,2]
[422535187,1779041442000,-1578.55,0.0001531,2]
[422535198,1779041442000,-314.41,0.0001531,2]
[422535186,1779041442000,-24999.99,0.0001531,2]
[422535195,1779041442000,-1195.97,0.0001531,2]
[422535190,1779041442000,-14170.89,0.0001531,2]
[422535199,1779041442000,-9999.99,0.0001531,2]
[422535193,1779041442000,-1487.79,0.0001531,2]
[422535191,1779041442000,-4999.99,0.0001531,2]
[422535205,1779041442000,-736.0,0.00015623,2]
[422535208,1779041442000,-166.66,0.00015767,2]
[422535206,1779041442000,-500.0,0.00015674,2]
[422535210,1779041442000,-700.0,0.000159,5]
[422535196,1779041442000,-850.91,0.0001531,2]
[422535200,1779041442000,-166.72,0.00015369,2]
[422535201,1779041442000,-500.0,0.000154,2]
[422535204,1779041442000,-500.0,0.00015536,2]
[422535209,1779041442000,-2270.40998677,0.00015807,2]
[422535203,1779041442000,-1237.39722377,0.000155,2]
[422535211,1779041442000,-3292.0,0.00015924,2]
[422535212,1779041442000,-500.0,0.00015948,2]
[422535215,1779041442000,-162.0,0.00016055,2]
[422535213,1779041442000,-300.0,0.00016,2]
[422535218,1779041442000,-150.0,0.00016087,2]
[422535214,1779041442000,-400.90550288,0.00016,2]
[422535217,1779041442000,-500.0,0.00016083,2]
[422535154,1779041442000,-177.320438,0.00015068,2]
[422535202,1779041442000,-166.66,0.00015455,2]
[422535189,1779041442000,-81124.81,0.0001531,2]
[422535207,1779041442000,-152.0,0.00015691,2]
[422535188,1779041442000,-433.62,0.0001531,2]
[422535216,1779041442000,-166.66,0.00016079,2]
[422535197,1779041442000,-3871.83,0.0001531,2]
[422535159,1779041442000,-177.320438,0.00015068,2]
[422535170,1779041442000,-9999.99,0.0001531,2]
[422535160,1779041442000,-177.320438,0.00015068,2]
[422535165,1779041442000,-166.66,0.00015142,2]
[422535164,1779041442000,-500.0,0.00015126,2]
[422535163,1779041442000,-151.0,0.00015068,2]
[422535167,1779041442000,-1517.64,0.000153,2]
[422535169,1779041442000,-9999.99,0.0001531,2]
[422535166,1779041442000,-150.0,0.00015178,2]
[422535168,1779041442000,-914.21,0.000153,2]
[422535179,1779041442000,-2200.42,0.0001531,2]
[422535171,1779041442000,-14129.03,0.0001531,2]
[422535177,1779041442000,-999.99,0.0001531,2]
[422535185,1779041442000,-9999.99,0.0001531,2]
[422535174,1779041442000,-3012.71,0.0001531,2]
[422535182,1779041442000,-34888.68,0.0001531,2]
[422535183,1779041442000,-3221.79,0.0001531,2]
[422535180,1779041442000,-520.42,0.0001531,2]
[422535176,1779041442000,-6057.49,0.0001531,2]
[422535181,1779041442000,-299.99,0.0001531,2]
[422535172,1779041442000,-9999.99,0.0001531,2]
[422535178,1779041442000,-190734.85,0.0001531,2]
[422535184,1779041442000,-1628.12,0.0001531,2]
[422535175,1779041442000,-499.99,0.0001531,2]
[422535173,1779041442000,-150.99,0.0001531,2]
[422535263,1779041443000,-21152.42594197,0.000179,2]
[422535264,1779041443000,-213.93907454,0.00018,2]
[422535260,1779041443000,-21152.42594199,0.000179,2]
[422535250,1779041443000,-255.79,0.00016767,2]
[422535252,1779041443000,-257.3,0.0001685,2]
[422535249,1779041443000,-7432.72693047,0.000165,2]
[422535251,1779041443000,-500.0,0.0001677,2]
[422535259,1779041443000,-1238.26279439,0.0001789,2]
[422535258,1779041443000,-914.21,0.000177,2]
[422535256,1779041443000,-250.845761,0.0001764,2]
[422535262,1779041443000,-21152.42594197,0.000179,2]
[422535253,1779041443000,-1252.0,0.00017034,2]
[422535265,1779041443000,-408.91666537,0.00018,2]
[422535287,1779041443000,-151.0,0.00018323,2]
[422535268,1779041443000,-350.0,0.00018,2]
[422535267,1779041443000,-1206.50743831,0.00018,2]
[422535266,1779041443000,-104629.08406291,0.00018,2]
[422535271,1779041443000,-408.91666537,0.000182,2]
[422535273,1779041443000,-3632.0,0.00018262,2]
[422535269,1779041443000,-1800.47162974,0.000181,2]
[422535272,1779041443000,-1223.0,0.0001821,2]
[422535270,1779041443000,-213.93907454,0.000182,2]
[422535275,1779041443000,-215.0785988,0.000183,2]
[422535285,1779041443000,-151.0,0.00018323,2]
[422535286,1779041443000,-151.0,0.00018323,2]
[422535255,1779041443000,-4609.0,0.00017516,2]
[422535261,1779041443000,-21152.42594197,0.000179,2]
[422535254,1779041443000,-500.0,0.00017044,2]
[422535220,1779041443000,-150.0,0.00016087,2]
[422535247,1779041443000,-500.0,0.00016496,2]
[422535274,1779041443000,-150.0,0.00018281,2]
[422535222,1779041443000,-400.90550288,0.000161,2]
[422535221,1779041443000,-288.0,0.00016087,2]
[422535219,1779041443000,-150.0,0.00016087,2]
[422535224,1779041443000,-400.90550288,0.000162,2]
[422535223,1779041443000,-1575.07,0.00016116,2]
[422535234,1779041443000,-151.0,0.00016438,2]
[422535225,1779041443000,-1323.53,0.00016216,2]
[422535235,1779041443000,-220.828382,0.00016438,2]
[422535226,1779041443000,-500.0,0.00016222,2]
[422535227,1779041443000,-200.0,0.0001634,2]
[422535229,1779041443000,-1493.0,0.00016438,2]
[422535233,1779041443000,-151.0,0.00016438,2]
[422535257,1779041443000,-1323.53,0.0001769,2]
[422535228,1779041443000,-166.66,0.00016391,2]
[422535230,1779041443000,-229.97,0.00016438,2]
[422535236,1779041443000,-151.0,0.00016438,2]
[422535237,1779041443000,-201.727795,0.00016438,2]
[422535239,1779041443000,-273.602189,0.00016438,2]
[422535238,1779041443000,-273.602189,0.00016438,2]
[422535240,1779041443000,-273.602189,0.00016438,2]
[422535245,1779041443000,-273.602189,0.00016438,2]
[422535242,1779041443000,-273.602189,0.00016438,2]
[422535241,1779041443000,-273.602189,0.00016438,2]
[422535243,1779041443000,-273.602189,0.00016438,2]
[422535244,1779041443000,-273.602189,0.00016438,2]
[422535246,1779041443000,-150.0,0.00016494,2]
[422535248,1779041443000,-6610.14028822,0.000165,2]
[422535232,1779041443000,-151.0,0.00016438,2]
[422535276,1779041443000,-151.0,0.00018323,2]
[422535283,1779041443000,-151.0,0.00018323,2]
[422535278,1779041443000,-151.0,0.00018323,2]
[422535317,1779041443000,-3000.0,0.00019178,2]
[422535311,1779041443000,-5231.61011729,0.00019,2]
[422535320,1779041443000,-839.06718577,0.00019178,17]
[422535327,1779041443000,-151.0,0.00019178,2]
[422535319,1779041443000,-3000.0,0.00019178,12]
[422535325,1779041443000,-151.0,0.00019178,2]
[422535323,1779041443000,-151.0,0.00019178,2]
[422535329,1779041443000,-151.0,0.00019178,2]
[422535335,1779041443000,-151.0,0.00019997,2]
[422535337,1779041443000,-153.0,0.0002,2]
[422535330,1779041443000,-289.0,0.00019178,2]
[422535334,1779041443000,-500.0,0.00019718,2]
[422535343,1779041443000,-3950.0,0.0002,2]
[422535332,1779041443000,-408.78,0.000192,7]
[422535338,1779041443000,-157.0,0.0002,2]
[422535339,1779041443000,-1490.08061639,0.0002,5]
[422535336,1779041443000,-155.0,0.0002,2]
[422535340,1779041443000,-25915.80558917,0.0002,2]
[422535342,1779041443000,-200000.0,0.0002,2]
[422535333,1779041443000,-6453.0,0.00019268,2]
[422535341,1779041443000,-158.0,0.0002,2]
[422535344,1779041443000,-26769.59424995,0.0002,2]
[422535347,1779041443000,-2987.02397701,0.0002,7]
[422535346,1779041443000,-1337.32704956,0.0002,2]
[422535349,1779041443000,-200.0,0.0002,2]
[422535348,1779041443000,-537.81326358,0.0002,7]
[422535350,1779041443000,-1058.5393221,0.0002,2]
[422535318,1779041443000,-3000.0,0.00019178,7]
[422535313,1779041443000,-1768.78993529,0.00019,2]
[422535345,1779041443000,-1311.36258266,0.0002,2]
[422535310,1779041443000,-4190.0,0.00019,2]
[422535315,1779041443000,-500.0,0.00019172,2]
[422535281,1779041443000,-151.0,0.00018323,2]
[422535279,1779041443000,-151.0,0.00018323,2]
[422535280,1779041443000,-151.0,0.00018323,2]
[422535284,1779041443000,-151.0,0.00018323,2]
[422535282,1779041443000,-151.0,0.00018323,2]
[422535289,1779041443000,-151.0,0.00018323,2]
[422535288,1779041443000,-151.0,0.00018323,2]
[422535291,1779041443000,-151.0,0.00018323,2]
[422535293,1779041443000,-151.0,0.00018323,2]
[422535290,1779041443000,-151.0,0.00018323,2]
[422535292,1779041443000,-151.0,0.00018323,2]
[422535294,1779041443000,-151.0,0.00018323,2]
[422535297,1779041443000,-213.93907454,0.000184,2]
[422535277,1779041443000,-151.0,0.00018323,2]
[422535298,1779041443000,-408.91666537,0.000184,2]
[422535296,1779041443000,-54636.46,0.00018356,2]
[422535306,1779041443000,-1354.0,0.00018617,2]
[422535308,1779041443000,-213.93907454,0.000187,2]
[422535307,1779041443000,-1270.0,0.00018617,2]
[422535304,1779041443000,-927.0,0.00018617,2]
[422535309,1779041443000,-408.91666537,0.000187,2]
[422535303,1779041443000,-2129.0,0.00018567,2]
[422535295,1779041443000,-151.0,0.00018323,2]
[422535305,1779041443000,-3543.0,0.00018617,2]
[422535302,1779041443000,-408.91666537,0.000185,2]
[422535299,1779041443000,-1493.0,0.0001841,2]
[422535301,1779041443000,-213.93907454,0.000185,2]
[422535300,1779041443000,-2000.0,0.00018413,2]
[422535376,1779041444000,-2771.76,0.00020548,2]
[422535393,1779041444000,-150.0,0.00021281,2]
[422535384,1779041444000,-1209.03378583,0.00021,2]
[422535388,1779041444000,-1915.0,0.00021,2]
[422535389,1779041444000,-9035.0,0.00021195,2]
[422535387,1779041444000,-160.0,0.00021,7]